Cogmind - Beta 16 @@@ ROGUE MODE // 2025.11.20 @ 13:59:17 Player: Mozco Result: Destroyed by S-27 Virus with Autogun Performance ------------- Evolutions (6) 3000 Regions Visited (18) 3600 Robots Destroyed (236) 1180 Value Destroyed (9472) 9472 Prototype IDs (42) 840 Alien Tech Used (0) 0 Bonus (7604) 7604 TOTAL SCORE: 25696 Bonus ------- High Alert Combat Kills 442 Follower Combat Kills 1462 Entered Garrisons 1400 Used RIF Installer 4000 Aligned with FarCom 300 Cogmind --------- Core Integrity 0/1150 Matter 115/300 Energy 394/515 System Corruption 0% Temperature Cool (0) Movement Rolling (160) Ox4 Location -4/Garrison Parts ------- > --- POWER (2) -------- Angular Momentum Engine Neutrino Core > --- PROPULSION (2) --- Compact Wheel Compact Wheel > --- UTILITY (12) ----- Experimental Heat Sink Advanced Cooling System Huge Storage Unit Experimental Core Analyzer Improved Armor Integrity Analyzer Graphene Brace Hacking Suite Relay Coupler [NC] (23) Relay Coupler [NC] (37) Relay Coupler [Grunt] (23) > --- WEAPON (3) ------- Matter Neutralizer Advanced KE Penetrator Improved Remote Datajack > --- INVENTORY (25) --- Wheel Wheel Wheel Advanced Cooling System Experimental Energy Well (600) Experimental Energy Well (600) Improved Weapon Cycler Experimental ECM Suite Experimental Power Shielding Experimental Power Shielding Experimental Power Shielding Experimental Power Shielding Advanced Thermal Shield Advanced Hardlight Generator Hacking Suite Relay Coupler [Swarmer] (38) Improved System Restoration Module Drone Bay (2/2) HERF Cannon Compact Tesla Bomb Launcher Compact Tesla Bomb Launcher Gamma Bomb Array Plasma Lance Plasma Lance Peak State ------------ > --- POWER ------------ Micro Fission Core Light Antimatter Reactor > --- PROPULSION ------- Wheel Wheel > --- UTILITY ---------- Huge Storage Unit Hacking Suite Relay Coupler [NC] Relay Coupler [Swarmer] Relay Coupler [Grunt] Relay Coupler [Heavy] Army-in-a-Box > --- WEAPON ----------- Variable Charge Gun Quantum Rifle KE Penetrator > --- INVENTORY -------- Micro Fission Core Advanced Cooling System Advanced Cooling System Experimental Core Analyzer Improved Armor Integrity Analyzer Improved Weapon Cycler Improved Medium Armor Plating Graphene Brace Advanced Thermal Shield Advanced Hardlight Generator Hacking Suite Relay Coupler [NC] Relay Coupler [Swarmer] Relay Coupler [Duelist] System Restoration Module Improved System Restoration Module Advanced Drone Bay Compact HERF Cannon Compact HERF Cannon Heavy Plasma Cannon Heavy Phase Cannon Guided Plasma Cannon Improved Remote Datajack Deploy-a-Sentry [Rating: 120] Favorites ----------- Power Neutrino Core Engine Ion Engine Power Core Neutrino Core Reactor Particle Reactor Propulsion Compact Wheel Wheel Compact Wheel Utility Huge Storage Unit Device Advanced Heat Sink Storage Huge Storage Unit Processor Core Analyzer Hackware Hacking Suite Protection Hardened Medium Armor Plating Weapon Light Cannon Energy Gun Quantum Rifle Energy Cannon Phase Cannon Ballistic Gun KE Penetrator Ballistic Cannon Light Cannon Launcher Heavy Missile Launcher Special Weapon Remote Datajack Impact Weapon Thunder Hammer Piercing Weapon Plasma Lance Special Melee Weapon Improved Datajack Build | -11 -10 -10 -10 -9 -8 -8 -7 -7 -7 -7 -6 -6 -6 -6 -5 -5 -4 -4 ------- Run | Yrd Mat Min Exi Min Mat Gar Fac Gar Fac Gar Fac Gar Fac Gar Fac Gar Fac Gar Slots Evolved 12 | . . . . . 4 . 2 . . . 2 . . . 2 . 2 . Power 1 | . . . . . . . . . . . . . . . . . 1 . Propulsion . | . . . . . . . . . . . . . . . . . . . Utility 10 | . . . . . 4 . 2 . . . 2 . . . 2 . . . Weapon 1 | . . . . . . . . . . . . . . . . . 1 . Parts Attached 216 | 6 11 1 2 . 39 12 6 3 10 5 16 10 . 9 15 12 57 2 Power 28 | 1 1 . . . 4 . 2 . 1 1 1 3 . 2 2 4 6 . Engine 11 | 1 1 . . . 3 . . . . . . 2 . . . 2 2 . Core 15 | . . . . . 1 . 2 . 1 1 1 . . 2 2 2 3 . Reactor 2 | . . . . . . . . . . . . 1 . . . . 1 . Propulsion 30 | 2 1 . . . 9 . . 1 5 . 1 . . 1 2 1 7 . Treads . | . . . . . . . . . . . . . . . . . . . Leg . | . . . . . . . . . . . . . . . . . . . Wheel 30 | 2 1 . . . 9 . . 1 5 . 1 . . 1 2 1 7 . Hover . | . . . . . . . . . . . . . . . . . . . Flight . | . . . . . . . . . . . . . . . . . . . Utility 96 | 1 5 . . . 13 7 3 1 2 1 13 6 . 4 8 3 27 2 Device 47 | . . . . . 7 4 2 . . 1 6 2 . 2 5 2 16 . Storage 8 | 1 4 . . . . . . . . . . . . . . . 3 . Processor 8 | . 1 . . . 3 . 1 . . . . . . . . 1 2 . Hackware 11 | . . . . . . . . 1 1 . 1 2 . 2 . . 2 2 Protection 22 | . . . . . 3 3 . . 1 . 6 2 . . 3 . 4 . Artifact . | . . . . . . . . . . . . . . . . . . . Weapon 62 | 2 4 1 2 . 13 5 1 1 2 3 1 1 . 2 3 4 17 . Energy Gun 27 | 2 1 . . . 7 1 . 1 1 3 1 1 . 2 2 2 3 . Energy Cannon 13 | . . . . . 4 2 . . . . . . . . . 2 5 . Ballistic Gun 5 | . 1 . . . 1 . . . . . . . . . . . 3 . Ballistic Cannon 4 | . 1 1 2 . . . . . . . . . . . . . . . Launcher 5 | . 1 . . . 1 1 1 . . . . . . . . . 1 . Special Weapon 4 | . . . . . . . . . 1 . . . . . 1 . 2 . Impact Weapon 1 | . . . . . . . . . . . . . . . . . 1 . Slashing Weapon . | . . . . . . . . . . . . . . . . . . . Piercing Weapon 2 | . . . . . . . . . . . . . . . . . 2 . Special Melee Weapon 1 | . . . . . . 1 . . . . . . . . . . . . Unidentified Prototypes 19 | . . . . . 6 . 2 . . . 1 . . . . 1 9 . Corrupted Parts 4 | . . . . . 2 . . . . . . . . . . 1 1 . System Corruption 12 | . . . . . 6 . . . . . . . . . . 3 3 . Parts Lost 94 | . 1 3 . . 10 1 . 2 3 2 6 9 . 15 2 10 27 3 Power 14 | . 1 1 . . 1 . . . . . 1 3 . 2 . 2 3 . Propulsion 17 | . . 2 . . 3 . . 1 1 . . 1 . 3 . 2 4 . Utility 39 | . . . . . 5 . . . 2 2 4 4 . 5 1 4 9 3 Weapon 24 | . . . . . 1 1 . 1 . . 1 1 . 5 1 2 11 . Highest Loss Streak 15 | . 1 3 . . 5 1 . 1 2 1 3 4 . 5 1 9 15 3 To Critical Strikes 1 | . . . . . . . . . . . . . . . . . 1 . Average Backups 16 | . 11 17 16 16 15 16 16 15 15 16 16 17 17 14 13 20 23 24 Power . | . . . . . . . . 1 1 1 . . . . 1 1 . . Propulsion . | . . . . . 1 1 1 . . 1 1 2 1 . . . . 3 Utility 8 | . 4 8 9 9 5 5 7 7 7 6 6 9 10 8 6 11 15 15 Weapon 6 | . 5 8 7 7 7 7 6 4 4 5 6 4 5 4 5 6 5 5 Tool/Special . | . . . . . . . . . . . . . . . . . . . Unused Backups 44 | . . . . . 12 1 3 . 1 2 1 1 . 1 3 . 5 14 Power 6 | . . . . . 3 . . . . 1 . . . . 2 . . . Propulsion 5 | . . . . . 1 . . . 1 . . . . . . . . 3 Utility 15 | . . . . . 1 . . . . 1 . 1 . 1 . . 3 8 Weapon 15 | . . . . . 6 1 2 . . . . . . . 1 . 2 3 Tool/Special 3 | . . . . . 1 . 1 . . . 1 . . . . . . . Average Slot Usage (%) 85 | . 98 86 71 71 87 93 93 91 91 90 85 86 100 90 77 68 75 99 Engine 3 | . 13 7 . . 6 . . . . . . 2 . . . 1 4 5 Core 3 | . . . . . 1 9 7 7 7 7 6 . . 3 5 3 3 5 Wheel 13 | . 27 21 14 14 15 18 15 14 14 15 7 6 13 10 5 5 7 10 Device 16 | . . . . . 17 17 33 26 22 19 21 22 20 21 21 8 16 25 Storage 8 | . 19 14 14 14 9 9 7 7 7 7 6 6 6 6 5 5 5 5 Processor 8 | . 8 14 14 14 14 9 7 7 7 7 6 6 6 6 5 8 4 10 Hackware 7 | . . . . . . . . 1 8 7 11 17 20 23 17 17 15 10 Protection 5 | . . . . . 5 12 6 9 7 8 10 8 13 3 2 2 2 10 Energy Gun 7 | . 14 . . . 5 9 . 7 6 9 10 9 13 8 8 7 4 . Energy Cannon 3 | . . . . . 8 6 9 6 7 3 1 . . 1 . . 2 5 Ballistic Cannon 3 | . 8 21 28 28 2 . . . . . . . . . . . . . Launcher 1 | . 3 6 . . . 1 4 . . 1 . . . . . . 1 5 Peak Build Rating 120 | 6 11 12 18 18 47 50 67 65 64 66 82 79 75 75 86 106 120 114 Average Rating 58 | 4 9 10 14 18 34 46 58 63 60 59 77 70 75 64 67 97 99 113 On Entrance 51 | . 6 10 10 18 18 47 46 65 64 55 66 77 75 75 50 84 103 114 Avg Prop Armor Cover (%) 3 | . 3 . . . . . . . . . . . . . . . . . Naked Turns . | . . . . . . . . . . . . . . . . . . . Heaviest Build 197 | 14 91 51 86 86 118 125 126 126 124 130 138 127 119 121 133 191 197 142 Greatest Support 40 | 32 32 26 16 16 32 32 32 32 32 20 40 40 20 38 26 26 32 32 Greatest Overweight (x) 43 | . 3 2 5 5 31 4 3 7 6 6 6 11 5 30 31 19 43 4 Average Overweight (x) 4 | . 1 1 3 5 4 3 3 3 3 5 4 4 5 3 5 15 8 3 Largest Inventory Capacity 25 | 8 25 20 25 25 25 25 25 25 25 25 25 25 25 25 25 25 25 25 Average Capacity 24 | 7 18 20 23 25 25 25 25 25 25 25 25 25 25 25 25 25 25 25 Most Carried 25 | 2 18 19 25 25 25 25 25 25 25 25 25 25 25 25 25 25 25 25 Average Carried 22 | . 11 18 22 25 24 24 24 24 24 24 24 24 24 21 20 23 24 24 Final Capacity 25 | 8 20 20 25 25 25 25 25 25 25 25 25 25 25 25 25 25 25 25 Final Carried 25 | 2 17 18 25 25 25 25 25 24 25 25 24 24 25 21 25 25 25 24 Class Distribution -------------------- 51% | Mutant 13% | Bothacker-Mutant 11% | Botlord-Mutant 5% | Scavenger-Mutant 5% | Bothacker-Gunner 4% | Skirmisher 3% | Botlord-Gunner Dominant Class ---------------- Mutant | -10/Materials Mutant | -10/Mines Mutant | -10/Exiles Mutant | -9/Mines Mutant | -8/Materials Scavenger-Mutant | -8/Garrison Mutant | -7/Factory Mutant | -7/Garrison Mutant | -7/Factory Mutant | -7/Garrison Mutant | -6/Factory Bothacker-Mutant | -6/Garrison Botlord-Mutant | -6/Factory Bothacker-Mutant | -6/Garrison Bothacker-Mutant | -5/Factory Botlord-Mutant | -5/Garrison Bothacker-Gunner | -4/Factory Bothacker-Gunner | -4/Garrison Resources | -11 -10 -10 -10 -9 -8 -8 -7 -7 -7 -7 -6 -6 -6 -6 -5 -5 -4 -4 ----------- Run | Yrd Mat Min Exi Min Mat Gar Fac Gar Fac Gar Fac Gar Fac Gar Fac Gar Fac Gar Matter Collected 4240 | 186 359 97 122 48 801 322 138 54 100 168 210 330 10 140 165 173 817 . Remotely . | . . . . . . . . . . . . . . . . . . . Salvage Created 9979 | . 633 63 . 101 1913 950 179 230 434 764 490 860 14 600 438 443 1867 . Parts 461 | . 48 6 . 5 88 52 15 7 17 36 15 24 1 24 17 16 90 . Haulers Intercepted 9 | . 2 . . . 3 . . . 1 . . . . . . . 3 . Recyclers Shooed 5 | . 1 . . . 2 . . . 1 . . . . . . . 1 . Parts Field Recycled . | . . . . . . . . . . . . . . . . . . . Retrieved Matter . | . . . . . . . . . . . . . . . . . . . Parts Self-Destructed . | . . . . . . . . . . . . . . . . . . . Prevented . | . . . . . . . . . . . . . . . . . . . Parts Restored 1 | . . . . . . 1 . . . . . . . . . . . . Broken 1 | . . . . . . 1 . . . . . . . . . . . . Kills | -11 -10 -10 -10 -9 -8 -8 -7 -7 -7 -7 -6 -6 -6 -6 -5 -5 -4 -4 ------- Run | Yrd Mat Min Exi Min Mat Gar Fac Gar Fac Gar Fac Gar Fac Gar Fac Gar Fac Gar Combat Hostiles Destroyed 178 | . 19 5 . 2 28 24 5 6 5 14 7 21 . 14 3 8 17 . Guns 79 | . 8 . . . 8 15 . 2 4 4 6 8 . 10 2 6 6 . Cannons 49 | . 1 2 . 2 15 7 1 3 1 3 1 3 . 3 . 2 5 . AOE 41 | . 10 3 . . 3 2 3 . . 6 . 10 . 1 . . 3 . Classes Destroyed 23 | . 7 . . 1 5 5 . . . . . 1 . . 1 1 2 . Worker 19 | . 4 . . . 4 . 1 . 5 . . . . . 1 . 4 . Builder 6 | . 1 . . . . . 1 . . . . . . . . . 4 . Tunneler 3 | . 1 . . 1 . . . . . . . . . . . . 1 . Hauler 9 | . 2 . . . 3 . . . 1 . . . . . . . 3 . Recycler 12 | . . . . . 6 . . . 2 . 1 . . . 1 . 2 . Mechanic 1 | . . . . . . . . . . . . . . . 1 . . . Operator 3 | . . . . . 1 . . . . . . . 1 . . . 1 . Drone 1 | . . . . . . . . . . . . . . . . . 1 . Watcher 5 | . 2 . . . 2 . . . . . . . . . 1 . . . Swarmer 40 | . 12 3 . . 4 3 3 2 3 . . 3 . 5 . 2 . . Cutter 2 | . . . . . . 2 . . . . . . . . . . . . Saboteur 2 | . . . . . . 2 . . . . . . . . . . . . Grunt 69 | . 7 2 . 1 17 9 . 1 . 8 5 10 . 2 . 1 6 . Brawler 2 | . . . . . . . . . . . . 2 . . . . . . Duelist 3 | . . . . 1 . . . . . . . 2 . . . . . . Protector 1 | . . . . . . 1 . . . . . . . . . . . . Sentry 20 | . . . . . 5 4 1 1 . . . 3 . 2 3 . 1 . Specialist 2 | . . . . . . 2 . . . . . . . . . . . . Hunter 14 | . . . . . 1 . . 2 . 2 . 1 . 2 . . 6 . Programmer 19 | . . . . . . 1 1 . 2 4 2 . . 3 . 3 3 . Heavy 1 | . . . . . 1 . . . . . . . . . . . . . Behemoth 1 | . . . . . . . . . . . . . . . . . 1 . Striker 2 | . . . . . . . . . . . . . . . . 2 . . Best Kill Streak 11 | . 5 3 . 2 6 6 4 2 6 7 2 10 1 5 2 2 11 . Combat Bots Only 10 | . 3 3 . 2 4 6 3 2 3 7 2 10 . 5 1 2 6 . Max Kills in Single Turn 4 | . 3 2 . 1 2 2 3 1 1 2 1 4 1 1 2 1 3 . Gunslinging 1 | . . . . . . . . . . . . . . . 1 . . . Exploded 4 | . 3 2 . . 2 2 3 . . 2 . 4 . 1 . . 2 . Melee . | . . . . . . . . . . . . . . . . . . . Uniques/NPCs Destroyed . | . . . . . . . . . . . . . . . . . . . Combat | -11 -10 -10 -10 -9 -8 -8 -7 -7 -7 -7 -6 -6 -6 -6 -5 -5 -4 -4 -------- Run | Yrd Mat Min Exi Min Mat Gar Fac Gar Fac Gar Fac Gar Fac Gar Fac Gar Fac Gar Hostile Shots Fired 1354 | . 76 28 . 2 110 62 27 89 30 49 105 162 . 172 25 78 298 41 Missed 461 | . 22 6 . . 27 21 8 44 10 11 28 57 . 68 10 20 111 18 Hits 893 | . 54 22 . 2 83 41 19 45 20 38 77 105 . 104 15 58 187 23 Melee 26 | . . . . 2 . 3 . . . . . . . . . 21 . . Projectile 867 | . 54 22 . . 83 38 19 45 20 38 77 105 . 104 15 37 187 23 AOE 2 | . . . . . . . . . . . . . . . . . 2 . Critical Strikes 45 | . 1 . . . 4 3 1 . . 2 4 4 . 2 1 5 16 2 Actively Blocked 3 | . . . . . . . . . . . . . . . . . 1 2 Damage Taken 15874 | . 537 290 . 65 1189 514 252 470 247 597 1562 1302 . 1448 385 2120 4471 425 Core 2861 | . 154 83 . . 172 21 11 21 28 14 40 226 . 290 47 599 1099 56 Absorbed by Shields 885 | . . . . . 337 82 59 59 12 10 93 169 . . . . 64 . Redirected to Shielding 263 | . . . . . . . . . . . 99 . . . . . 115 49 Ignored by Resistances 79 | . . . . . . . . . . . . . . 62 5 . 12 . Regen/Repaired (Parts) 116 | . 34 . . . 82 . . . . . . . . . . . . . Core Remaining (%) 54 | 100 . . . 5 . 64 . . . 89 . . . 34 . 35 . . Volleys Fired 694 | . 59 15 . 6 125 63 20 24 25 32 27 60 1 59 18 70 85 5 Largest 3 | . 2 2 . 2 2 2 2 2 2 2 2 2 2 2 2 2 3 3 Hottest 281 | . 100 60 . 60 136 135 124 130 165 175 175 160 144 160 156 184 281 189 Shots Fired 1081 | . 95 27 . 12 208 88 21 35 32 53 52 82 2 93 33 92 145 11 Gun 645 | . 81 . . . 77 58 . 20 23 30 39 63 2 82 32 71 64 3 Cannon 374 | . 5 24 . 12 129 29 20 15 7 20 11 7 . 6 . 17 69 3 Launcher 38 | . 9 3 . . 2 1 1 . . 3 . 10 . . . . 5 4 Special 24 | . . . . . . . . . 2 . 2 2 . 5 1 4 7 1 Kinetic 145 | . 33 24 . 12 54 . . . . . . . . . . . 19 3 Thermal 699 | . 53 . . . 100 50 20 12 29 17 50 70 2 88 32 87 86 3 Explosive 29 | . 9 3 . . 2 1 1 . . 3 . 10 . . . . . . Electromagnetic 184 | . . . . . 52 37 . 23 1 33 . . . . . 1 33 4 Robot Hit Streak 35 | . 8 4 . 4 35 28 1 6 11 13 7 14 1 14 13 11 17 5 Robot Miss Streak 6 | . 6 3 . 2 6 1 2 1 3 2 3 2 1 5 1 4 5 2 Penetration Max . | . . . . . . . . . . . . . . . . . . . Secondary Targets 8 | . 2 . . . 1 . . . . 2 . . . 1 1 . 1 . Max Gunslinging Chain 1 | . 1 . . . 1 . . . . 1 . . . 1 1 . 1 . Shots Hit Robots 675 | . 49 14 . 5 132 69 1 17 28 28 34 63 1 66 30 40 89 9 Core Hits 387 | . 41 6 . 4 70 40 7 9 20 24 12 48 1 23 14 17 47 4 Critical Kills 4 | . . . . . . . . . . . . . . . . . 4 . Critical Parts Destroyed . | . . . . . . . . . . . . . . . . . . . Critical Strikes 16 | . 5 . . 1 2 . . 1 . 1 . 1 . . . 1 4 . Burn 7 | . 4 . . . . . . . . 1 . 1 . . . 1 . . Meltdown 2 | . . . . . . . . . . . . . . . . . 2 . Destroy 2 | . . . . . . . . . . . . . . . . . 2 . Blast 4 | . 1 . . 1 2 . . . . . . . . . . . . . Corrupt 1 | . . . . . . . . 1 . . . . . . . . . . Melee Attacks 11 | . . . . . . 7 . . . . . . . . . . 4 . Impact . | . . . . . . . . . . . . . . . . . . . Slashing . | . . . . . . . . . . . . . . . . . . . Piercing 4 | . . . . . . . . . . . . . . . . . 4 . Sneak Attacks 10 | . . . . . . 7 . . . . . . . . . . 3 . Combat Hostiles . | . . . . . . . . . . . . . . . . . . . Follow-up Attacks . | . . . . . . . . . . . . . . . . . . . Damage Inflicted 22634 | . 1214 417 . 83 3394 2117 655 523 543 1272 916 3541 20 1441 685 1616 3914 283 Guns 9657 | . 522 . . . 1086 1056 . 267 409 470 676 1091 20 1244 685 989 1091 51 Cannons 6952 | . 53 241 . 83 1665 862 316 256 134 423 240 158 . 197 . 627 1593 104 Explosions 5758 | . 639 176 . . 643 199 339 . . 379 . 2292 . . . . 963 128 Melee 267 | . . . . . . . . . . . . . . . . . 267 . Ramming . | . . . . . . . . . . . . . . . . . . . Kinetic 1350 | . 175 241 . 83 447 . . . . . . . . . . . 353 51 Thermal 13002 | . 400 . . . 1882 1439 316 177 521 404 916 1249 20 1441 685 1616 1832 104 Explosive 4111 | . 639 176 . . 187 166 339 . . 312 . 2292 . . . . . . Electromagnetic 3904 | . . . . . 878 512 . 346 22 556 . . . . . . 1462 128 Impact . | . . . . . . . . . . . . . . . . . . . Slashing . | . . . . . . . . . . . . . . . . . . . Piercing 267 | . . . . . . . . . . . . . . . . . 267 . Highest Corruption 6 | . . . . . 6 6 . . . 1 . . . . . 5 3 . Average Corruption 3 | . . . . . 5 6 . . . 1 . . . . . 1 2 . Corruption Purged 7 | . . . . . . . . . . . . . . . . . 7 . Corruption Blocked . | . . . . . . . . . . . . . . . . . . . Effects 115 | . . . . . 41 37 . . . 5 . . . . . 11 21 . Message Errors 27 | . . . . . 11 8 . . . . . . . . . 4 4 . Matter Fused 27 | . . . . . 13 8 . . . . . . . . . 3 3 . Heat Flow Errors 8 | . . . . . 3 2 . . . . . . . . . . 3 . Energy Discharges 9 | . . . . . 3 1 . . . 2 . . . . . . 3 . Parts Rejected 2 | . . . . . . 1 . . . . . . . . . . 1 . Parts Fused 2 | . . . . . 1 . . . . 1 . . . . . . . . Data Loss (minor) 22 | . . . . . 4 9 . . . 2 . . . . . 3 4 . Data Loss (major) 7 | . . . . . 2 4 . . . . . . . . . . 1 . Misfires 4 | . . . . . 1 1 . . . . . . . . . . 2 . Alerts 3 | . . . . . 2 1 . . . . . . . . . . . . Weapon Failures 4 | . . . . . 1 2 . . . . . . . . . 1 . . Overload Shots . | . . . . . . . . . . . . . . . . . . . Overflow Damage 465 | . 23 . . . 205 19 37 1 . 14 38 42 . . . 14 72 . Projectiles 122 | . . . . . 19 17 7 1 . 7 38 . . . . 14 19 . Explosions 304 | . 23 . . . 186 2 30 . . 7 . 42 . . . . 14 . Melee 39 | . . . . . . . . . . . . . . . . . 39 . Knockbacks 6 | . 1 2 . . 3 . . . . . . . . . . . . . Impact . | . . . . . . . . . . . . . . . . . . . Kinetic 6 | . 1 2 . . 3 . . . . . . . . . . . . . Secondary . | . . . . . . . . . . . . . . . . . . . Self-Inflicted Damage 329 | . 51 . . . 127 . . . . 41 . 99 . . . . 11 . Shots 9 | . 3 . . . 2 . . . . 1 . 2 . . . . 1 . Rammed . | . . . . . . . . . . . . . . . . . . . Targets Rammed . | . . . . . . . . . . . . . . . . . . . Kicked . | . . . . . . . . . . . . . . . . . . . Crushed . | . . . . . . . . . . . . . . . . . . . Highest Temperature 396 | . 381 50 . . 295 299 264 . . . 357 396 58 270 67 330 335 24 Average Temperature 91 | . 116 28 . . 76 97 87 . . . 129 80 34 76 19 128 99 18 Received Heat Transfer 2422 | . 147 156 . . 390 165 12 42 18 192 138 487 . 222 72 24 330 27 Effects 8 | . 1 . . . . 1 2 . . . . 2 . . . . 2 . Shutdowns 1 | . . . . . . . . . . . . . . . . . 1 . Energy Bleed 2 | . . . . . . 1 . . . . . . . . . . 1 . Interference 2 | . . . . . . . 2 . . . . . . . . . . . Short Circuit 1 | . 1 . . . . . . . . . . . . . . . . . Damage (minor) 2 | . . . . . . . . . . . . 2 . . . . . . Siege Activations . | . . . . . . . . . . . . . . . . . . . Martial Activations . | . . . . . . . . . . . . . . . . . . . Shielding Activations . | . . . . . . . . . . . . . . . . . . . Robots Disrupted 1 | . . . . . 1 . . . . . . . . . . . . . Combat Hostiles 1 | . . . . . 1 . . . . . . . . . . . . . Robots Corrupted 8 | . . . . . 1 . . 1 . 2 . . . . . . 4 . Combat Hostiles 5 | . . . . . 1 . . 1 . 1 . . . . . . 2 . Parts Fried 27 | . . . . . 3 1 . 4 . 5 . . . . . . 14 . Impact Corruptions . | . . . . . . . . . . . . . . . . . . . Robots Melted 5 | . . . . . 1 . 1 . . . . . . . 1 . 2 . Combat Hostiles 4 | . . . . . 1 . 1 . . . . . . . 1 . 1 . Parts Melted 41 | . 4 . . . 3 2 3 . 3 2 1 6 . 6 4 5 2 . Heat Transferred 22183 | . 1480 . . . 3181 2763 597 400 998 630 1221 2152 37 2508 1203 2619 2283 111 Parts Sabotaged . | . . . . . . . . . . . . . . . . . . . Parts Stolen . | . . . . . . . . . . . . . . . . . . . Parts Stripped . | . . . . . . . . . . . . . . . . . . . Power Chain Reactions 8 | . . . . . 4 1 . . . 2 . . . . . . 1 . Alert | -11 -10 -10 -10 -9 -8 -8 -7 -7 -7 -7 -6 -6 -6 -6 -5 -5 -4 -4 ------- Run | Yrd Mat Min Exi Min Mat Gar Fac Gar Fac Gar Fac Gar Fac Gar Fac Gar Fac Gar Maximum Alert Level 3 | . 1 . . . 1 3 2 1 . 2 1 3 1 2 1 1 2 1 Low Security (%) 55 | 100 87 100 . 100 78 9 . 1 100 25 55 4 . 2 94 58 78 . Level 1 30 | . 12 . . . 21 29 38 98 . 28 44 21 100 78 5 41 20 100 Level 2 12 | . . . . . . 36 61 . . 45 . 71 . 18 . . . . Level 3 1 | . . . . . . 24 . . . . . 2 . . . . . . Level 4 . | . . . . . . . . . . . . . . . . . . . Level 5 . | . . . . . . . . . . . . . . . . . . . High Security . | . . . . . . . . . . . . . . . . . . . Max Security . | . . . . . . . . . . . . . . . . . . . Peak Influence 830 | . 249 127 . 50 297 830 470 344 180 507 296 701 367 417 213 355 400 328 Initial 435 | . . 40 . . . 178 435 263 180 57 266 203 367 183 213 33 186 278 Average 205 | . 98 62 . 7 105 481 404 262 76 341 171 520 319 344 88 211 117 283 Influence Increases 7258 | . 612 187 . 55 916 682 344 241 205 470 548 608 5 414 177 442 1287 65 Destroy 0b10 Robot/C 4280 | . 380 100 . 40 560 540 160 120 100 280 300 420 . 360 80 240 600 . Destroy 0b10 Robot/NC 335 | . 50 . . 5 80 5 30 . 40 5 10 5 5 . 20 . 80 . Destroy Leader 792 | . 68 20 . 10 140 20 52 20 32 40 92 30 . 20 42 30 176 . Allied During Kill 309 | . . . . . . 45 24 1 . . 61 . . 14 3 60 101 . Successful Hack 107 | . 6 . . . 19 14 . . . . 32 . . . . 12 24 . Select Force Hacks 150 | . 30 . . . . . . . 30 . 30 . . . 30 . 30 . Disable Machine 390 | . 45 45 . . 30 . 60 45 . 15 . 15 . . . . 120 15 Anti-Garrison Action 200 | . . . . . . . . 50 . 50 . 50 . . . 50 . . Destroy Structure 440 | . 33 22 . . 42 28 18 5 3 50 8 58 . 5 2 20 126 20 Lose Combat Pursuer 255 | . . . . . 45 30 . . . 30 15 30 . 15 . 30 30 30 Influence Decreases 6945 | . 508 234 57 55 641 127 797 274 467 45 765 197 444 269 536 135 1244 150 Entered New Map 2155 | . . 64 57 . . 97 395 114 164 25 241 87 334 79 194 15 169 120 Time Decay 3175 | . 498 140 . 55 436 . 362 . 273 . 446 . 110 . 302 . 553 . Lost Part 778 | . 10 30 . . 100 10 . 20 30 20 58 90 . 150 20 100 110 30 Lost Ally 732 | . . . . . . 20 40 140 . . 20 20 . 40 20 20 412 . Purge Threat 105 | . . . . . 105 . . . . . . . . . . . . . Squads Dispatched 36 | . 3 . . . 5 . 1 . 2 . 10 . 1 . 2 . 12 . Investigation 11 | . 2 . . . 3 . . . 1 . 1 . 1 . 1 . 2 . Extermination 9 | . . . . . . . 1 . 1 . 2 . . . 1 . 4 . Reinforcement 16 | . 1 . . . 2 . . . . . 7 . . . . . 6 . Assault . | . . . . . . . . . . . . . . . . . . . Garrison . | . . . . . . . . . . . . . . . . . . . Intercept . | . . . . . . . . . . . . . . . . . . . Searches Triggered . | . . . . . . . . . . . . . . . . . . . Construction Impeded . | . . . . . . . . . . . . . . . . . . . Haulers Reinforced 1 | . . . . . . . . . . . . . . . . . 1 . Active Scanning Responses . | . . . . . . . . . . . . . . . . . . . Cargo Convoy Interrupts . | . . . . . . . . . . . . . . . . . . . Stealth | -11 -10 -10 -10 -9 -8 -8 -7 -7 -7 -7 -6 -6 -6 -6 -5 -5 -4 -4 --------- Run | Yrd Mat Min Exi Min Mat Gar Fac Gar Fac Gar Fac Gar Fac Gar Fac Gar Fac Gar Distress Signals 8 | . . . . . 5 . 2 . . . 1 . . . . . . . Communications Jammed 10 | . . . . . . . . . . . . . . . . . 10 . Distress Signals 2 | . . . . . . . . . . . . . . . . . 2 . Times Spotted 278 | . 25 5 . 1 45 21 11 12 9 15 19 23 1 18 8 12 45 8 Peak Tracking Total 7 | . 4 3 . 1 5 7 5 6 3 3 5 7 1 6 3 5 5 4 Tactical Retreats 14 | . . . . . 3 2 . . . 1 1 2 . 1 . 1 2 1 Traps | -11 -10 -10 -10 -9 -8 -8 -7 -7 -7 -7 -6 -6 -6 -6 -5 -5 -4 -4 ------- Run | Yrd Mat Min Exi Min Mat Gar Fac Gar Fac Gar Fac Gar Fac Gar Fac Gar Fac Gar Traps Triggered 33 | . 1 . . . 1 7 3 1 1 1 . 5 . 3 . 3 3 4 Indirectly 2 | . . . . . . . . . . . . . . . . . . 2 Trap Hack Attempts . | . . . . . . . . . . . . . . . . . . . Triggered . | . . . . . . . . . . . . . . . . . . . Disarmed . | . . . . . . . . . . . . . . . . . . . Reprogrammed . | . . . . . . . . . . . . . . . . . . . Reused . | . . . . . . . . . . . . . . . . . . . Traps Extracted . | . . . . . . . . . . . . . . . . . . . Installed . | . . . . . . . . . . . . . . . . . . . Triggered . | . . . . . . . . . . . . . . . . . . . Machines | -11 -10 -10 -10 -9 -8 -8 -7 -7 -7 -7 -6 -6 -6 -6 -5 -5 -4 -4 ---------- Run | Yrd Mat Min Exi Min Mat Gar Fac Gar Fac Gar Fac Gar Fac Gar Fac Gar Fac Gar Machines Disabled 32 | . 3 3 . . 2 2 4 4 . 2 . 2 . . . 1 8 1 Max in Single Turn 1 | . 1 1 . . 1 1 . 1 . 1 . 1 . . . 1 1 1 Garrison Relay 4 | . . . . . . . . 1 . 1 . 1 . . . 1 . . Machines Repaired . | . . . . . . . . . . . . . . . . . . . Machines Dismantled . | . . . . . . . . . . . . . . . . . . . Machines Sabotaged . | . . . . . . . . . . . . . . . . . . . Overloaded Fab Kills . | . . . . . . . . . . . . . . . . . . . Hacking | -11 -10 -10 -10 -9 -8 -8 -7 -7 -7 -7 -6 -6 -6 -6 -5 -5 -4 -4 --------- Run | Yrd Mat Min Exi Min Mat Gar Fac Gar Fac Gar Fac Gar Fac Gar Fac Gar Fac Gar Machines Accessed 48 | . 5 1 1 . 11 2 3 1 2 1 6 1 2 1 3 1 7 . Terminals 26 | . 3 . . . 6 2 1 1 1 1 3 1 1 1 1 1 3 . Fabricators 4 | . . . . . . . 1 . . . . . . . 1 . 2 . Repair Stations 4 | . 1 . . . 2 . . . . . 1 . . . . . . . Recycling Units 2 | . 1 . . . . . . . . . . . . . . . 1 . Scanalyzers 3 | . . . . . 2 . . . . . 1 . . . . . . . Garrison Access 7 | . . . . . 1 . 1 . 1 . 1 . 1 . 1 . 1 . Total Hacks 101 | . 13 1 1 . 29 4 5 1 7 1 11 1 5 2 6 2 12 . Successful 55 | . 8 1 1 . 18 2 1 . 4 1 7 1 1 . 2 1 7 . Failed 44 | . 4 . . . 10 2 4 1 3 . 4 . 4 2 4 1 5 . Catastrophic 12 | . . . . . 1 . 2 1 2 . 1 . 1 1 . . 3 . Database Lockouts 2 | . 1 . . . 1 . . . . . . . . . . . . . Manual 38 | . 9 . 1 . 11 . . . 6 . 2 . 2 . 1 . 6 . Terminals 56 | . 8 . . . 17 4 2 1 5 1 5 1 2 2 1 2 5 . Fabricators 9 | . . . . . . . 2 . . . . . . . 3 . 4 . Repair Stations 10 | . 4 . . . 4 . . . . . 2 . . . . . . . Recycling Units 2 | . 1 . . . . . . . . . . . . . . . 1 . Scanalyzers 8 | . . . . . 6 . . . . . 2 . . . . . . . Garrison Access 14 | . . . . . 2 . 1 . 2 . 2 . 3 . 2 . 2 . Terminal Hacks 18 | . 2 1 1 . 4 2 . . . 1 3 1 . . . 1 2 . Part Schematic 1 | . . . . . 1 . . . . . . . . . . . . . Robot Analysis 1 | . 1 . . . . . . . . . . . . . . . . . Open Door 3 | . . 1 . . . 1 . . . . . 1 . . . . . . Emergency Access Points 1 | . . . . . . 1 . . . . . . . . . . . . Fabricator Index 1 | . . . . . . . . . . . 1 . . . . . . . Unreport Threat 2 | . . . . . 2 . . . . . . . . . . . . . Locate Traps 1 | . . . . . . . . . . . 1 . . . . . . . Dispatch Records 1 | . 1 . . . . . . . . . . . . . . . . . Hauler Manifests 1 | . . . . . . . . . . . . . . . . . 1 . Zone Layout 3 | . . . . . 1 . . . . . 1 . . . . . 1 . Garrison Registry 2 | . . . . . . . . . . 1 . . . . . 1 . . Proto ID Catalog 1 | . . . 1 . . . . . . . . . . . . . . . Fabricator Hacks 1 | . . . . . . . . . . . . . . . . . 1 . Network Status 1 | . . . . . . . . . . . . . . . . . 1 . Repair Station Hacks 9 | . 4 . . . 4 . . . . . 1 . . . . . . . Scan Component 5 | . 2 . . . 2 . . . . . 1 . . . . . . . Repair 4 | . 2 . . . 2 . . . . . . . . . . . . . Recycling Unit Hacks 1 | . . . . . . . . . . . . . . . . . 1 . Retrieve Components 1 | . . . . . . . . . . . . . . . . . 1 . Scanalyzer 6 | . . . . . 6 . . . . . . . . . . . . . Insert Component 2 | . . . . . 2 . . . . . . . . . . . . . Analyze 3 | . . . . . 3 . . . . . . . . . . . . . Retrieve Study 1 | . . . . . 1 . . . . . . . . . . . . . Garrison Access Hacks 7 | . . . . . 1 . 1 . 1 . 1 . 1 . 1 . 1 . Unlock Access 7 | . . . . . 1 . 1 . 1 . 1 . 1 . 1 . 1 . Unauthorized Hacks 13 | . 2 . . . 3 . . . 3 . 2 . . . 1 . 2 . Terminals 7 | . 1 . . . 3 . . . 2 . 1 . . . . . . . Assimilate 1 | . . . . . . . . . 1 . . . . . . . . . Botnet 6 | . 1 . . . 3 . . . 1 . 1 . . . . . . . Fabricators 1 | . . . . . . . . . . . . . . . . . 1 . Haulers 1 | . . . . . . . . . . . . . . . . . 1 . Repair Stations . | . . . . . . . . . . . . . . . . . . . Recycling Units 1 | . 1 . . . . . . . . . . . . . . . . . Tunnel 1 | . 1 . . . . . . . . . . . . . . . . . Scanalyzers . | . . . . . . . . . . . . . . . . . . . Garrison Access 4 | . . . . . . . . . 1 . 1 . . . 1 . 1 . Eject 4 | . . . . . . . . . 1 . 1 . . . 1 . 1 . Data Cores Recovered 2 | . . . . . 1 . . . . . . . 1 . . . . . Used . | . . . . . . . . . . . . . . . . . . . Hacking Detections 35 | . 3 . . . 10 1 2 1 1 . 3 . 2 1 3 1 7 . Full Trace Events 5 | . . . . . 3 . . . . . . . 1 . . . 1 . Feedback Events . | . . . . . . . . . . . . . . . . . . . Feedback Blocked . | . . . . . . . . . . . . . . . . . . . Robot Schematics Acquired . | . . . . . . . . . . . . . . . . . . . Robots Built . | . . . . . . . . . . . . . . . . . . . Authchips . | . . . . . . . . . . . . . . . . . . . Time . | . . . . . . . . . . . . . . . . . . . Total Robot Build Rating . | . . . . . . . . . . . . . . . . . . . Part Schematics Acquired 3 | . . . . . 3 . . . . . . . . . . . . . Parts Built . | . . . . . . . . . . . . . . . . . . . Authchips . | . . . . . . . . . . . . . . . . . . . Time . | . . . . . . . . . . . . . . . . . . . Total Part Build Rating . | . . . . . . . . . . . . . . . . . . . Part Studies Acquired 1 | . . . . . 1 . . . . . . . . . . . . . Parts Repaired 4 | . 2 . . . 2 . . . . . . . . . . . . . Time 139 | . 62 . . . 77 . . . . . . . . . . . . . Parts Recycled . | . . . . . . . . . . . . . . . . . . . Recycled Matter . | . . . . . . . . . . . . . . . . . . . Retrieved Matter . | . . . . . . . . . . . . . . . . . . . Retrieved Components 3 | . . . . . . . . . . . . . . . . . 3 . Parts Scanalyzed 2 | . . . . . 2 . . . . . . . . . . . . . Part Schematics Acquired 2 | . . . . . 2 . . . . . . . . . . . . . Parts Damaged 1 | . . . . . 1 . . . . . . . . . . . . . Bothacking | -11 -10 -10 -10 -9 -8 -8 -7 -7 -7 -7 -6 -6 -6 -6 -5 -5 -4 -4 ------------ Run | Yrd Mat Min Exi Min Mat Gar Fac Gar Fac Gar Fac Gar Fac Gar Fac Gar Fac Gar Used RIF Installer 8 | . . . . . . 1 . 2 . 1 . 2 . 1 . 1 . . Coupler Efficiency 1 | . . . . . . . . 1 . . . . . . . . . . Command Fork 1 | . . . . . . . . 1 . . . . . . . . . . Signal Jammer 1 | . . . . . . . . . . . . 1 . . . . . . Robot Detection 1 | . . . . . . . . . . . . . . 1 . . . . Watcher Feeds 1 | . . . . . . . . . . . . 1 . . . . . . Alert ID Control 1 | . . . . . . . . . . . . . . . . 1 . . Autooverride 1 | . . . . . . . . . . 1 . . . . . . . . Robots Hacked 17 | . . . . . . . . . 1 . 1 2 . 4 . 3 5 1 Non-combat 1 | . . . . . . . . . . . . . . . . . 1 . Combat 16 | . . . . . . . . . 1 . 1 2 . 4 . 3 4 1 Autooverrided 7 | . . . . . . . . . . . . 1 . 2 . 2 2 . Robot Hacks Applied 15 | . . . . . . . . . 2 . 2 2 . 2 . 1 5 1 drop_inventory 1 | . . . . . . . . . . . . . . . . . 1 . locate_stockpiles 1 | . . . . . . . . . . . . . . . . . 1 . find_garrison 3 | . . . . . . . . . 1 . 1 . . . . . 1 . amplify_resonance 6 | . . . . . . . . . . . . . . 2 . 1 2 1 reboot_system 1 | . . . . . . . . . . . . 1 . . . . . . streamctrl_high 1 | . . . . . . . . . . . . 1 . . . . . . formatsys_high 2 | . . . . . . . . . 1 . 1 . . . . . . . Relay Couplers Released 31 | . . . . . . 4 . 4 3 3 3 5 . . 3 3 3 . Ejected 12 | . . . . . . . . . 3 . 3 . . . 3 . 3 . Machine Destruction 15 | . . . . . . . . 4 . 3 . 5 . . . 3 . . Programmers 4 | . . . . . . 4 . . . . . . . . . . . . Attached 10 | . . . . . . . . 1 . . 1 2 . 2 . . 2 2 Fabnet Peak Effective % . | . . . . . . . . . . . . . . . . . . . Robots Rewired 6 | . . . . . . 3 1 . . . . . . . 1 1 . . Allies Hacked . | . . . . . . . . . . . . . . . . . . . Hacks Repelled . | . . . . . . . . . . . . . . . . . . . Allies | -11 -10 -10 -10 -9 -8 -8 -7 -7 -7 -7 -6 -6 -6 -6 -5 -5 -4 -4 -------- Run | Yrd Mat Min Exi Min Mat Gar Fac Gar Fac Gar Fac Gar Fac Gar Fac Gar Fac Gar Total Allies 17 | . . . . . . 3 1 . 1 . 1 3 . 2 1 3 2 . Largest Group 3 | . . . . . . 3 2 . 1 . 1 1 1 2 1 2 1 . Highest-Rated Group 148 | . . . . . . 79 51 . 32 . 32 46 46 58 49 148 119 . Highest-Rated Ally 119 | . . . . . . 39 39 . 32 . 32 46 46 46 49 119 119 . Total Orders 28 | . . . . . . 2 . 4 . . 4 . . . 6 3 9 . STAY 4 | . . . . . . 1 . 2 . . . . . . . 1 . . ROAM 1 | . . . . . . . . 1 . . . . . . . . . . FOLLOW 3 | . . . . . . 1 . 1 . . . . . . . 1 . . EXPLORE 9 | . . . . . . . . . . . 4 . . . 3 . 2 . RETURN 11 | . . . . . . . . . . . . . . . 3 1 7 . Ally Attacks 332 | . . . . . . 14 37 11 1 . 42 3 1 25 4 30 164 . Total Damage 7024 | . . . . . . 312 416 . 43 . 2012 81 22 436 147 791 2764 . Kills 45 | . . . . . . 5 7 . . . 9 . . 4 1 5 14 . Allies Corrupted 1 | . . . . . . . . . 1 . . . . . . . . . Allies Melted . | . . . . . . . . . . . . . . . . . . . Turrets Deployed 3 | . . . . . . . . . . . 2 . . . . . 1 . Intel | -11 -10 -10 -10 -9 -8 -8 -7 -7 -7 -7 -6 -6 -6 -6 -5 -5 -4 -4 ------- Run | Yrd Mat Min Exi Min Mat Gar Fac Gar Fac Gar Fac Gar Fac Gar Fac Gar Fac Gar Active Infowar (turns) 1080 | . . . . . 1037 . . . . . . . . . . . 43 . Terrain 1036 | . . . . . 1036 . . . . . . . . . . . . . T.N.C. 524 | . . . . . 524 . . . . . . . . . . . . . ECM 43 | . . . . . . . . . . . . . . . . . 43 . Robot Analysis Total 1 | . 1 . . . . . . . . . . . . . . . . . Derelict Logs Recovered 1 | . . . . 1 . . . . . . . . . . . . . . Drone Launches 86 | . . . . . . . . 11 . . 4 . . . 4 9 58 . Drone Recoveries 45 | . . . . . . . . . . . 4 . . . 4 8 29 . Exploration | -11 -10 -10 -10 -9 -8 -8 -7 -7 -7 -7 -6 -6 -6 -6 -5 -5 -4 -4 ------------- Run | Yrd Mat Min Exi Min Mat Gar Fac Gar Fac Gar Fac Gar Fac Gar Fac Gar Fac Gar Turns Passed 16686 | 56 1640 310 416 367 2594 990 832 663 615 844 1138 766 223 771 675 1087 2542 157 Spaces Moved 7623 | 47 559 224 263 200 1177 509 514 372 348 445 590 316 148 361 215 297 961 77 Core 25 | 2 . . . . 2 . . . . . . . . 9 6 . 6 . Treads . | . . . . . . . . . . . . . . . . . . . Legs . | . . . . . . . . . . . . . . . . . . . Wheels 7598 | 45 559 224 263 200 1175 509 514 372 348 445 590 316 148 352 209 297 955 77 Hover . | . . . . . . . . . . . . . . . . . . . Flight . | . . . . . . . . . . . . . . . . . . . Fastest Speed 50 | 50 100 105 130 175 130 145 145 145 145 145 130 130 145 115 145 160 130 145 Average Speed 163 | 97 113 116 153 175 152 145 145 148 146 159 155 162 145 161 205 298 214 159 Slowest Speed 2200 | 100 135 130 175 175 1600 145 145 205 190 160 160 235 145 1550 1600 355 2200 160 Overloaded Moves . | . . . . . . . . . . . . . . . . . . . Propulsion Burnouts . | . . . . . . . . . . . . . . . . . . . Robots Hopped . | . . . . . . . . . . . . . . . . . . . Potential Cave-ins . | . . . . . . . . . . . . . . . . . . . Cave-ins Triggered . | . . . . . . . . . . . . . . . . . . . Exploration Rate (%) 40 | 4 73 70 62 55 85 66 20 47 13 58 29 50 4 38 10 35 28 19 Regions Visited 18 Branch Regions 3 Pre-discovered Areas 1 | . 1 . . . . . . . . . . . . . . . . . Known Exits Taken 7 | . . . . . 1 . 1 . 1 . 1 . 1 . 1 . 1 . Unknown Exits Taken 5 | 1 1 1 1 1 . . . . . . . . . . . . . . Scrap Searched 3 | . . 1 . 2 . . . . . . . . . . . . . . Spaces Dug 32 | . 16 . . . 1 . 3 . . 7 . . . . . . 5 . Terrain Destroyed 258 | . 31 27 . . 39 3 16 . 2 29 4 49 . . . . 58 . Melee . | . . . . . . . . . . . . . . . . . . . Projectile 40 | . 1 . . . 1 . 10 . 2 . 4 1 . . . . 21 . AOE 218 | . 30 27 . . 38 3 6 . . 29 . 48 . . . . 37 . Terrain Rammed . | . . . . . . . . . . . . . . . . . . . Walls Destroyed . | . . . . . . . . . . . . . . . . . . . Machines Disabled . | . . . . . . . . . . . . . . . . . . . Actions | -11 -10 -10 -10 -9 -8 -8 -7 -7 -7 -7 -6 -6 -6 -6 -5 -5 -4 -4 --------- Run | Yrd Mat Min Exi Min Mat Gar Fac Gar Fac Gar Fac Gar Fac Gar Fac Gar Fac Gar Total 10810 | 54 1466 246 276 207 1765 662 584 445 419 527 773 495 154 469 424 424 1315 105 Wait 1703 | . 808 5 . . 345 17 9 34 14 9 105 66 4 13 150 11 110 3 Move 7608 | 46 558 223 262 199 1176 509 514 371 347 444 589 315 148 360 214 296 960 77 Hop . | . . . . . . . . . . . . . . . . . . . Pick Up 159 | 2 16 1 6 1 28 2 9 1 6 9 14 4 1 4 15 8 32 . Fast Attach 115 | 6 4 . . . 22 9 2 1 1 3 9 8 . 3 4 2 41 . Attach 83 | . 2 1 2 . 10 . 5 2 3 1 8 4 . 7 7 6 24 1 Detach 9 | . . . . . . . . . . . 1 1 . . . 3 4 . Swap 131 | . 14 1 2 . 23 13 3 3 8 10 4 8 . 6 6 10 17 3 Drop 151 | . 5 . 4 1 36 10 12 1 7 11 16 4 . 1 10 2 31 . Fire 694 | . 59 15 . 6 125 63 20 24 25 32 27 60 1 59 18 70 85 5 Melee 10 | . . . . . . 7 . . . . . . . . . . 3 . Ram . | . . . . . . . . . . . . . . . . . . . Kick . | . . . . . . . . . . . . . . . . . . . Crush . | . . . . . . . . . . . . . . . . . . . Escape Stasis 137 | . . . . . . 32 . 8 8 8 . 25 . 16 . 16 8 16 Rewire 10 | . . . . . . . 10 . . . . . . . . . . . Trap . | . . . . . . . . . . . . . . . . . . . Miscellaneous . | . . . . . . . . . . . . . . . . . . . Route ------- -11/Scrapyard -10/Materials (discovered 2 exits: [*Mat] / *Min) -10/Mines -10/Exiles -9/Mines -8/Materials (discovered 4 exits: *Fac x3 / Gar) -8/Garrison (discovered 2 exits: *Fac x2) -7/Factory (discovered 2 exits: *Fac / Gar) -7/Garrison -7/Factory (discovered 2 exits: [*Low] / Gar) -7/Garrison (discovered 4 exits: *Fac x3 / [Fac]) -6/Factory (discovered 3 exits: *Fac / [*Low] / Gar) -6/Garrison -6/Factory -6/Garrison -5/Factory -5/Garrison (discovered 3 exits: *Fac x3) -4/Factory (discovered 2 exits: [*Res] / Gar) -4/Garrison History --------- Turn | Location | Event 27 | -11/Scrapyard | Discovered new exit (range 15) 57 | -11/Scrapyard | Entered Materials 309 | -10/Materials | Build established: Mutant 402 | -10/Materials | Repaired Broken Com. Wheel 430 | -10/Materials | Repaired Com. Wheel 673 | -10/Materials | Discovered new exit (range 14) 815 | -10/Materials | Central database locked down 1604 | -10/Materials | Core integrity fell below 50% 1639 | -10/Materials | Discovered new exit (range 15) 1697 | -10/Materials | Entered Mines 1708 | -10/Mines | Found the Drone Emporium 1712 | -10/Mines | Found Prototype Device 1864 | -10/Mines | Core integrity fell below 20% 1903 | -10/Mines | Lost 3 parts (1p2n) 2001 | -10/Mines | Deemed a non-threat by the Exiles lab entrance 2001 | -10/Mines | Discovered new exit (range 5) 2007 | -10/Mines | Entered Exiles 2039 | -10/Exiles | Met 8R-AWN 2062 | -10/Exiles | Met EX-HEX 2096 | -10/Exiles | Met EX-BIN 2114 | -10/Exiles | Aligned with FarCom system 2115 | -10/Exiles | Given EX-Vault access code 2160 | -10/Exiles | Opened EX-Vault 2173 | -10/Exiles | Found Gui. Plasma Cannon 2179 | -10/Exiles | Found Army-in-a-Box 2188 | -10/Exiles | Found Deploy-a-Sentry 2191 | -10/Exiles | Found Deploy-a-Sentry 2193 | -10/Exiles | Found Deploy-a-Sentry 2237 | -10/Exiles | Warned to stay clear of 0b10 Research branches 2286 | -10/Exiles | Met EX-DEC 2402 | -10/Exiles | Discovered new exit (range 10) 2423 | -10/Exiles | Stole three prototypes: Army-in-a-Box, Gui. Plasma Cannon, Deploy-a-Sentry 2423 | -10/Exiles | Entered Mines 2600 | -9/Mines | Received a Rocket Launcher from a helpful Derelict 2755 | -9/Mines | Discovered new exit (range 12) 2776 | -9/Mines | Learned Materials security intel 2790 | -9/Mines | Entered Materials 2790 | -8/Materials | Evolved 4 slots: Utility x4 3039 | -8/Materials | Repaired Com. Wheel 3524 | -8/Materials | Build established: Scavenger-Skirmisher 3838 | -8/Materials | Discovered new exit (range 7) 3845 | -8/Materials | Build established: Skirmisher 4082 | -8/Materials | Lost 5 parts (2n2u1w) 4232 | -8/Materials | Central database locked down 4258 | -8/Materials | Repaired Imp. EM Shotgun 4357 | -8/Materials | Build established: Mutant 4391 | -8/Materials | Discovered new exit (range 9) 4914 | -8/Materials | Discovered new exit (range 15) 4963 | -8/Materials | Lost 4 parts (1p1n2u) 5330 | -8/Materials | Build established: Scavenger-Mutant 5378 | -8/Materials | Identified exit to Garrison 5384 | -8/Materials | Entered Garrison 5460 | -8/Garrison | Triggered checkpoint 5638 | -8/Garrison | Triggered checkpoint 5746 | -8/Garrison | Discovered new exit (range 12) 5798 | -8/Garrison | Triggered checkpoint 6106 | -8/Garrison | Triggered checkpoint 6158 | -8/Garrison | Triggered checkpoint 6189 | -8/Garrison | Discovered new exit (range 15) 6246 | -8/Garrison | Build established: Mutant 6256 | -8/Garrison | Installed Relay Interface Framework 6374 | -8/Garrison | Entered Factory 6374 | -7/Factory | Accompanied by 1 ally 6374 | -7/Factory | Evolved 2 slots: Utility x2 6376 | -7/Factory | FarCom data flow suspended 6660 | -7/Factory | Identified Bomb Drone Bay 6950 | -7/Factory | Discovered new exit (range 8) 7206 | -7/Factory | Identified exit to Garrison 7206 | -7/Factory | Entered Garrison 7255 | -7/Garrison | Triggered checkpoint 7312 | -7/Garrison | Expanded RIF knowledge: Coupler Efficiency 7404 | -7/Garrison | Triggered checkpoint 7408 | -7/Garrison | Triggered checkpoint 7442 | -7/Garrison | Triggered checkpoint 7447 | -7/Garrison | Triggered checkpoint 7513 | -7/Garrison | Lost 6 allies 7550 | -7/Garrison | Expanded RIF knowledge: Command Fork 7593 | -7/Garrison | Discovered new exit (range 10) 7707 | -7/Garrison | Garrison Relay disabled 7850 | -7/Garrison | Lost 3 allies 7869 | -7/Garrison | Entered Factory 8020 | -7/Factory | Discovered new exit (range 11) 8472 | -7/Factory | Identified exit to Garrison 8484 | -7/Factory | Entered Garrison 8552 | -7/Garrison | Triggered checkpoint 8694 | -7/Garrison | Triggered checkpoint 8715 | -7/Garrison | Triggered checkpoint 8742 | -7/Garrison | Destroyed 7 combat bots 8823 | -7/Garrison | Discovered new exit (range 8) 8832 | -7/Garrison | Discovered new exit (range 91) 8832 | -7/Garrison | Discovered new exit (range 70) 8832 | -7/Garrison | Discovered new exit (range 7) 8832 | -7/Garrison | Discovered new exit (range 78) 9102 | -7/Garrison | Expanded RIF knowledge: Autooverride 9242 | -7/Garrison | Triggered checkpoint 9264 | -7/Garrison | Garrison Relay disabled 9328 | -7/Garrison | Entered Factory 9328 | -6/Factory | Evolved 2 slots: Utility x2 9369 | -6/Factory | Discovered new exit (range 31) 9421 | -6/Factory | Discovered new exit (range 88) 10126 | -6/Factory | Found Powered Armor 10129 | -6/Factory | Found Powered Armor 10132 | -6/Factory | Found Powered Armor 10176 | -6/Factory | DAS Turret deployed 10178 | -6/Factory | DAS Turret deployed 10216 | -6/Factory | Lost 3 parts (2u1w) 10280 | -6/Factory | Lost 3 parts (1p2u) 10450 | -6/Factory | Identified exit to Garrison 10466 | -6/Factory | Entered Garrison 10507 | -6/Garrison | Expanded RIF knowledge: Signal Jamming 10660 | -6/Garrison | Triggered checkpoint 10665 | -6/Garrison | Triggered checkpoint 10718 | -6/Garrison | Triggered checkpoint 10721 | -6/Garrison | Destroyed 10 combat bots 10769 | -6/Garrison | Lost 4 parts (1p2u1w) 10772 | -6/Garrison | Build established: Bothacker-Mutant 10900 | -6/Garrison | Triggered checkpoint 10956 | -6/Garrison | Expanded RIF knowledge: Watcher Feeds 10979 | -6/Garrison | Garrison Relay disabled 11016 | -6/Garrison | Triggered checkpoint 11039 | -6/Garrison | Rescued a captive Derelict 11057 | -6/Garrison | Lost 3 parts (1p1n1u) 11212 | -6/Garrison | Discovered new exit (range 12) 11232 | -6/Garrison | Entered Factory 11232 | -6/Factory | Accompanied by 1 ally 11279 | -6/Factory | Build established: Botlord-Mutant 11455 | -6/Factory | Identified exit to Garrison 11455 | -6/Factory | Entered Garrison 11455 | -6/Garrison | Accompanied by 1 ally 11615 | -6/Garrison | Lost 3 parts (1n1u1w) 11635 | -6/Garrison | Triggered checkpoint 11703 | -6/Garrison | Lost 3 parts (2u1w) 11733 | -6/Garrison | Discovered new exit (range 10) 11767 | -6/Garrison | Triggered checkpoint 11784 | -6/Garrison | Core integrity fell below 50% 11819 | -6/Garrison | Lost 3 parts (1p2w) 11832 | -6/Garrison | Expanded RIF knowledge: Robot Detection 11889 | -6/Garrison | Triggered checkpoint 11935 | -6/Garrison | Triggered checkpoint 12123 | -6/Garrison | Lost 5 parts (1p2n1u1w) 12226 | -6/Garrison | Entered Factory 12226 | -5/Factory | Evolved 2 slots: Utility x2 12363 | -5/Factory | Build established: Bothacker-Mutant 12897 | -5/Factory | Identified exit to Garrison 12901 | -5/Factory | Entered Garrison 12935 | -5/Garrison | Triggered checkpoint 12987 | -5/Garrison | Discovered new exit (range 51) 12987 | -5/Garrison | Discovered new exit (range 53) 12987 | -5/Garrison | Discovered new exit (range 45) 13052 | -5/Garrison | Spotted Striker 13052 | -5/Garrison | Spotted Striker 13088 | -5/Garrison | Destroyed Striker 13107 | -5/Garrison | Core integrity fell below 50% 13115 | -5/Garrison | Destroyed Striker 13146 | -5/Garrison | Lost 9 parts (1p2n4u2w) 13194 | -5/Garrison | Build established: Botlord-Mutant 13238 | -5/Garrison | Garrison Relay disabled 13424 | -5/Garrison | Rewired Executioner 13536 | -5/Garrison | Spotted B-75 Beast 13559 | -5/Garrison | Allies destroyed B-75 Beast 13662 | -5/Garrison | Triggered checkpoint 13908 | -5/Garrison | Expanded RIF knowledge: Alert ID Control 13988 | -5/Garrison | Entered Factory 13988 | -4/Factory | Accompanied by 1 ally 13988 | -4/Factory | Evolved 2 slots: Power x1, Weapon x1 14176 | -4/Factory | Found Prototype Processor 14238 | -4/Factory | Lost 5 allies 14418 | -4/Factory | Lost 3 allies 14497 | -4/Factory | Discovered new exit (range 17) 14525 | -4/Factory | Lost 6 allies 14637 | -4/Factory | Lost 3 allies 14948 | -4/Factory | Build established: Botlord-Gunner 14965 | -4/Factory | Lost 3 parts (1p1n1u) 15053 | -4/Factory | Spotted B-86 Titan 15068 | -4/Factory | Lost 15 allies 15096 | -4/Factory | Core integrity fell below 50% 15106 | -4/Factory | Destroyed B-86 Titan 15128 | -4/Factory | Core integrity fell below 20% 15143 | -4/Factory | DAS Turret deployed 15158 | -4/Factory | Lost 15 parts (2p1n5u7w) 15206 | -4/Factory | Found Prototype Launcher 15206 | -4/Factory | Identified Com. Tesla Bomb Launcher 15211 | -4/Factory | Found Faulty Com. Tesla Bomb Launcher 15216 | -4/Factory | Found Com. Tesla Bomb Launcher 15366 | -4/Factory | Build established: Bothacker-Mutant 15368 | -4/Factory | Identified Exp. Core Analyzer 15998 | -4/Factory | Found Prototype Device 15998 | -4/Factory | Identified Exp. ECM Suite 16248 | -4/Factory | Found Gamma Bomb Array 16421 | -4/Factory | Build established: Bothacker-Gunner 16510 | -4/Factory | Identified exit to Garrison 16530 | -4/Factory | Entered Garrison 16649 | -4/Garrison | Spotted B-86 Titan 16662 | -4/Garrison | Triggered checkpoint 16669 | -4/Garrison | Triggered checkpoint 16687 | -4/Garrison | Destroyed by S-27 Virus with Autogun Last Messages --------------- 16672_ Slug penetrates Wall. 16672_ Stasis Trap short circuited. 16672_ A bubble of rippling energy engulfs the area. 16674_ Slug penetrates Wall. 16675_ Slug penetrates B-86 Titan. 16677_ P-70 Sage resets B-86 Titan, system corruption cleaned. 16679_ Imp. Phase Shifter destroyed. 16681_ Exp. Power Shielding destroyed. 16681_ Penetrated by Slug. 16683_ Jacked G-67 Veteran... >>amplify_resonance Amplifying resonance, compromised power stability. 16684_ G-67 Veteran Lgt. Antimatter Reactor critical resonance detonation. 16684_ G-67 Veteran destroyed. 16684_ Imp. Medium Armor Plating destroyed. 16687_ G-67 Veteran destroyed. 16687_ Slug penetrates Wall. 16687_ C-45 Heavy ARC bursts open, deploying its payload. 16687_ S-27 Virus unfolds itself. Map ----- +----------------------------------------------------+ | ?????????????????????????????????????????????????? | | ?????????????????????????????????????????????????? | | ???????????????????????????g?????????????????????? | | ??????????????????????????? g ???????????????????? | | ??????????????????????????? ???????????????????? | | ??????????????????????????? ???????????????????? | | ??????????????????????????# #??? ##???????????? | | ??????????????????????????" ?? ???????????? | | ??????????????????????????" ?? ????????????? | | ??????????????????????????" ? ?????????????? | | ??????????????????????????" ? ?????????????? | | ??????????????????????????# ## ??????????????? | | ??????????????????????????# # ???????????????? | | ??????????????????????????# BB????????????????? | | ??????????????????????????# BB?? ????????????? | | ??????????????????????????# ?? ?????????g??? | | ??????????????????????????# #? ????????g????? | | ??????????????????????????# ? ?????????g????? | | ??????????????????????????# ## #???????????????? | | ??????????????????????????# ! s #???????????????? | | ?????????????????????????? =%s%s#???????????????? | | ?????????????????????????? [ s##???????????????? | | ?????????????????????????#;= #???????????????? | | ?????#####################=%! #????????????????? | | ?????# ! ;#?????????????????? | | ?????# @ ##?????????????????? | | ?????# % #??????????????????? | | ?????# ######################??????????????????? | | ?????# #???????????????????????????????????????? | | ?????# #???????????????????????????????????????? | | ?????# #???????????????????????????????????????? | | ?????# #???????????????????????????????????????? | | ?????# #???????????????????????????????????????? | | ?????# #???????????????????????????????????????? | | ?????# #???????????????????????????????????????? | | ?????# #???????????????????????????????????????? | | ?????# #???????????????????????????????????????? | | #????# #???????????????????????????????????????? | | # ???# #???????????????????????????????????????? | | # ### #???????????????????????????????????????? | | # ^ #???????????????????????????????????????? | | # #???????????????????????????????????????? | | ###### #???????????????????????????????????????? | | ?????# #???????????????????????????????????????? | | ?????# #???????????????????????????????????????? | | ###### #???????????????????????????????????????? | | #???????????????????????????????????????? | | #???????????????????????????????????????? | | #???????????????????????????????????????? | | ######## #???????????????????????????????????????? | +----------------------------------------------------+ Best States ------------- Heat Dissipation 133 Energy Generation 40 Energy Capacity 1115 Matter Stores 300 Matter Capacity 300 Sight Range 16 Terrain Scan Range 16 Terrain Scan Density 110 ECM Strength 3 Power Amplification 30 Additional Mass Support 12 Base Temperature (-) 100 Armor Coverage 950 Resistance: TH 30 Resistance: EM 15 Power Shielding 90 Propulsion Shielding 66 Weapon Cycling 20 Phase Shifting 10 Evasion (%) 50 Targeting Accuracy 8 Target Analysis 6 Core Analysis 8 Armor Integrity Analysis 40 Particle Charging 20 Offensive Hacking 10 Relay Coupler Types 4 Relay Coupler Value 85 Item Schematics ----------------- Huge Storage Unit | -8/Materials | Hacked Imp. Datajack | -8/Materials | Scanalyzed Cryofiber Web | -8/Materials | Scanalyzed Robot Schematics ------------------ None Fabricated ------------ Nothing Repaired ---------- Com. Wheel | 80% | -10/Materials | Broken Com. Wheel | 6% | -10/Materials Com. Wheel | 26% | -8/Materials Imp. EM Shotgun | 14% | -8/Materials Studied --------- Wheel | -8/Materials | Hacked Alien Tech Used ----------------- None Achievements -------------- None Challenges ------------ None Game ------ Seed TripodTacticalRailcannon Manual? 0 Play Time 02:51:42 Cumulative 307.8 hours Start 2025.11.20 @ 09:08:38 End 2025.11.20 @ 13:59:17 Sessions 3 Manual Loads 0 Difficulty Rogue Special Mode None Game No. 321 Rogue 317 Adventurer 3 Explorer 1 Win Type - Total 2 Types 2/0/0/0/0/0/0/0/0/0 Lore% 79 Gallery% 77 Achievement% 63 Wizard Run 0 Options --------- Layout 0 ASCII 0 Keyboard 0 Movement Mouse Keybinds 0 Fullscreen 2 Font 18/SmallcapsGlow Map View 76x50 Zoom Use 0% Tactical HUD 1 Map Filters NONE Filters NONE Steam 1 RUN: 2f08ea9d-8911-45d3-9933-661be640f32d